Cogmind - Beta 14 @@@ ROGUE MODE // 2024.09.02 @ 23:50:40 Player: Beef Result: Destroyed by D-53 Grenadier with Mini Grenade Launcher Performance ------------- Evolutions (0) 0 Regions Visited (2) 400 Robots Destroyed (30) 150 Value Destroyed (608) 608 Prototype IDs (1) 20 Alien Tech Used (0) 0 Bonus (19) 19 TOTAL SCORE: 1197 Bonus ------- High Alert Combat Kills 4 Follower Combat Kills 25 Friendly Fire -10 Cogmind --------- Core Integrity 0/250 Matter 231/300 Energy 94/100 System Corruption 0% Temperature Cool (0) Movement Core (50) Location -10/Mines Parts ------- > --- POWER (1) -------- (None) > --- PROPULSION (2) --- Aluminum Leg Aluminum Leg > --- UTILITY (2) ------ Heat Sink > --- WEAPON (2) ------- Light Assault Rifle Light Assault Rifle > --- INVENTORY (5) ---- Light Ion Engine Aluminum Leg Hacking Suite Small Laser Light Assault Rifle Peak State ------------ > --- POWER ------------ Ion Engine > --- PROPULSION ------- Light Treads Light Treads > --- UTILITY ---------- Small Storage Unit Experimental Sensor Array > --- WEAPON ----------- Assault Rifle Assault Rifle > --- INVENTORY -------- Ion Engine Aluminum Leg Aluminum Leg Seismic Detector Hacking Suite Small Laser Light Assault Rifle [Rating: 15] Favorites ----------- Power Ion Engine Engine Ion Engine Propulsion Light Treads Treads Light Treads Leg Aluminum Leg Wheel Compact Wheel Utility Small Storage Unit Device Heat Sink Storage Small Storage Unit Weapon Light Assault Rifle Energy Gun EM Pulse Gun Ballistic Gun Light Assault Rifle Build | -11 -10 -10 ------- Run | Yrd Mat Min Slots Evolved . | . . . Power . | . . . Propulsion . | . . . Utility . | . . . Weapon . | . . . Parts Attached 29 | 10 4 15 Power 5 | 1 2 2 Engine 5 | 1 2 2 Core . | . . . Reactor . | . . . Propulsion 12 | 4 . 8 Treads 2 | 2 . . Leg 8 | . . 8 Wheel 2 | 2 . . Hover . | . . . Flight . | . . . Utility 6 | 2 1 3 Device 5 | 1 1 3 Storage 1 | 1 . . Processor . | . . . Hackware . | . . . Protection . | . . . Artifact . | . . . Weapon 6 | 3 1 2 Energy Gun 1 | 1 . . Energy Cannon . | . . . Ballistic Gun 5 | 2 1 2 Ballistic Cannon . | . . . Launcher . | . . . Special Weapon . | . . . Impact Weapon . | . . . Slashing Weapon . | . . . Piercing Weapon . | . . . Special Melee Weapon . | . . . Unidentified Prototypes 1 | . . 1 Parts Lost 5 | . 1 4 Power 1 | . . 1 Propulsion 1 | . . 1 Utility 2 | . 1 1 Weapon 1 | . . 1 Highest Loss Streak 2 | . 1 2 To Critical Strikes . | . . . Average Slot Usage (%) 99 | . 99 99 Engine 13 | . 13 14 Treads 13 | . 28 6 Leg 14 | . . 21 Device 13 | . 13 13 Storage 14 | . 14 14 Ballistic Gun 28 | . 28 28 Peak Build Rating 15 | 9 9 15 Average Rating 7 | 4 8 8 On Entrance 5 | . 9 7 Naked Turns . | . . . Heaviest Build 15 | 14 15 15 Greatest Support 40 | 40 40 40 Greatest Overweight (x) . | . . . Average Overweight (x) . | . . . Largest Inventory Capacity 8 | 8 8 8 Average Capacity 7 | 5 8 7 Most Carried 8 | 5 7 8 Average Carried 6 | 3 5 7 Final Capacity 8 | 8 8 5 Final Carried 6 | 5 6 5 Class Distribution -------------------- 78% | Mutant 21% | Scavenger-Mutant Dominant Class ---------------- Mutant | -10/Materials Mutant | -10/Mines Resources | -11 -10 -10 ----------- Run | Yrd Mat Min Matter Collected 823 | 294 74 455 Remotely . | . . . Salvage Created 871 | 120 335 416 Parts 63 | 8 26 29 Haulers Intercepted . | . . . Recyclers Shooed 3 | . 3 . Parts Field Recycled . | . . . Retrieved Matter . | . . . Parts Self-Destructed . | . . . Prevented . | . . . Kills | -11 -10 -10 ------- Run | Yrd Mat Min Combat Hostiles Destroyed 23 | . 9 14 Guns 23 | . 9 14 Classes Destroyed 9 | 3 5 1 Worker 1 | 1 . . Tunneler 2 | 1 . 1 Recycler 2 | 1 . 1 Mechanic 1 | . 1 . Operator 1 | . 1 . Watcher 1 | . 1 . Swarmer 11 | . 2 9 Grunt 11 | . 7 4 Assembled 1 | . . 1 Best Kill Streak 5 | 1 5 4 Combat Bots Only 4 | . 4 3 Max Kills in Single Turn 1 | 1 1 1 Gunslinging . | . . . Exploded . | . . . Melee . | . . . Uniques/NPCs Destroyed . | . . . Combat | -11 -10 -10 -------- Run | Yrd Mat Min Hostile Shots Fired 155 | . 47 108 Missed 40 | . 13 27 Damage Taken 1285 | 14 357 914 Core 255 | . 41 214 Absorbed by Shields . | . . . Core Remaining (%) 100 | 100 . . Volleys Fired 96 | 10 35 51 Largest 2 | 2 2 2 Hottest 60 | 60 40 40 Shots Fired 190 | 20 70 100 Gun 190 | 20 70 100 Cannon . | . . . Launcher . | . . . Special . | . . . Kinetic 189 | 19 70 100 Thermal . | . . . Explosive . | . . . Electromagnetic 1 | 1 . . Robot Hit Streak 19 | 4 6 19 Robot Miss Streak 6 | 3 6 6 Penetration Max . | . . . Secondary Targets 5 | . 2 3 Max Gunslinging Chain 1 | . 1 1 Shots Hit Robots 109 | 13 40 56 Core Hits 53 | 4 21 28 Critical Kills . | . . . Critical Parts Destroyed 2 | . 1 1 Critical Strikes 2 | . 1 1 Destroy 2 | . 1 1 Melee Attacks . | . . . Impact . | . . . Slashing . | . . . Piercing . | . . . Sneak Attacks . | . . . Combat Hostiles . | . . . Follow-up Attacks . | . . . Damage Inflicted 1341 | 175 507 659 Guns 1287 | 127 504 656 Cannons . | . . . Explosions 48 | 48 . . Melee . | . . . Ramming 6 | . 3 3 Kinetic 1272 | 112 504 656 Thermal 48 | 48 . . Explosive . | . . . Electromagnetic 15 | 15 . . Impact . | . . . Slashing . | . . . Piercing . | . . . Highest Corruption . | . . . Average Corruption . | . . . Corruption Purged . | . . . Corruption Blocked . | . . . Overload Shots . | . . . Overflow Damage . | . . . Projectiles . | . . . Explosions . | . . . Melee . | . . . Knockbacks . | . . . Impact . | . . . Kinetic . | . . . Secondary . | . . . Self-Inflicted Damage 14 | 14 . . Shots 1 | 1 . . Rammed . | . . . Targets Rammed 2 | . 1 1 Kicked 1 | . . 1 Crushed 1 | . 1 . Highest Temperature 12 | 12 6 10 Average Temperature 5 | 12 4 4 Received Heat Transfer 408 | . 144 264 Siege Activations . | . . . Robots Corrupted . | . . . Combat Hostiles . | . . . Parts Fried . | . . . Impact Corruptions . | . . . Robots Melted . | . . . Combat Hostiles . | . . . Parts Melted . | . . . Heat Transferred . | . . . Parts Sabotaged . | . . . Parts Stolen . | . . . Parts Stripped . | . . . Power Chain Reactions 1 | 1 . . Alert | -11 -10 -10 ------- Run | Yrd Mat Min Peak Influence 437 | 15 314 437 Initial 122 | . 9 122 Average 195 | 5 159 262 Maximum Alert Level 2 | . 1 2 Low Security (%) 42 | 100 55 20 Level 1 52 | . 44 69 Level 2 5 | . . 9 Level 3 . | . . . Level 4 . | . . . Level 5 . | . . . High Security . | . . . Max Security . | . . . Squads Dispatched 2 | . 2 . Investigation 1 | . 1 . Extermination . | . . . Reinforcement 1 | . 1 . Assault . | . . . Garrison . | . . . Intercept . | . . . Searches Triggered . | . . . Construction Impeded . | . . . Haulers Reinforced . | . . . Active Scanning Responses . | . . . Cargo Convoy Interrupts . | . . . Stealth | -11 -10 -10 --------- Run | Yrd Mat Min Distress Signals 2 | . 2 . Communications Jammed . | . . . Distress Signals . | . . . Times Spotted 48 | . 15 33 Peak Tracking Total 13 | . 4 13 Tactical Retreats 2 | . 1 1 Traps | -11 -10 -10 ------- Run | Yrd Mat Min Traps Triggered 1 | . 1 . Indirectly . | . . . Trap Hack Attempts . | . . . Triggered . | . . . Disarmed . | . . . Reprogrammed . | . . . Reused . | . . . Traps Extracted . | . . . Installed . | . . . Triggered . | . . . Machines | -11 -10 -10 ---------- Run | Yrd Mat Min Machines Disabled . | . . . Max in Single Turn . | . . . Machines Repaired . | . . . Machines Dismantled . | . . . Machines Sabotaged . | . . . Overloaded Fab Kills . | . . . Hacking | -11 -10 -10 --------- Run | Yrd Mat Min Machines Accessed 2 | . 2 . Terminals 2 | . 2 . Fabricators . | . . . Repair Stations . | . . . Recycling Units . | . . . Scanalyzers . | . . . Garrison Access . | . . . Total Hacks 7 | . 7 . Successful 2 | . 2 . Failed 5 | . 5 . Catastrophic 2 | . 2 . Database Lockouts . | . . . Manual 3 | . 3 . Terminals 7 | . 7 . Fabricators . | . . . Repair Stations . | . . . Recycling Units . | . . . Scanalyzers . | . . . Garrison Access . | . . . Terminal Hacks . | . . . Fabricator Hacks . | . . . Repair Station Hacks . | . . . Recycling Unit Hacks . | . . . Scanalyzer . | . . . Garrison Access Hacks . | . . . Unauthorized Hacks 2 | . 2 . Terminals 2 | . 2 . Botnet 2 | . 2 . Fabricators . | . . . Repair Stations . | . . . Recycling Units . | . . . Scanalyzers . | . . . Garrison Access . | . . . Data Cores Recovered . | . . . Used . | . . . Hacking Detections 2 | . 2 . Full Trace Events 2 | . 2 . Feedback Events . | . . . Feedback Blocked . | . . . Robot Schematics Acquired . | . . . Robots Built . | . . . Authchips . | . . . Time . | . . . Total Robot Build Rating . | . . . Part Schematics Acquired . | . . . Parts Built . | . . . Authchips . | . . . Time . | . . . Total Part Build Rating . | . . . Parts Repaired . | . . . Time . | . . . Parts Recycled . | . . . Recycled Matter . | . . . Retrieved Matter . | . . . Retrieved Components . | . . . Parts Scanalyzed . | . . . Part Schematics Acquired . | . . . Parts Damaged . | . . . Bothacking | -11 -10 -10 ------------ Run | Yrd Mat Min Used RIF Installer . | . . . Robots Hacked . | . . . Non-combat . | . . . Combat . | . . . Robot Hacks Applied . | . . . Relay Couplers Released . | . . . Fabnet Peak Effective % . | . . . Robots Rewired . | . . . Allies Hacked . | . . . Hacks Repelled . | . . . Allies | -11 -10 -10 -------- Run | Yrd Mat Min Total Allies 3 | . . 3 Largest Group 3 | . . 3 Highest-Rated Group 73 | . . 73 Highest-Rated Ally 31 | . . 31 Total Orders . | . . . Ally Attacks 15 | . . 15 Total Damage 211 | . . 211 Kills 4 | . . 4 Allies Corrupted . | . . . Allies Melted . | . . . Intel | -11 -10 -10 ------- Run | Yrd Mat Min Robot Analysis Total . | . . . Derelict Logs Recovered 1 | . . 1 Drone Launches . | . . . Drone Recoveries . | . . . Exploration | -11 -10 -10 ------------- Run | Yrd Mat Min Turns Passed 1288 | 195 352 741 Spaces Moved 698 | 94 149 455 Core 5 | 1 . 4 Treads 296 | 87 149 60 Legs 391 | . . 391 Wheels 6 | 6 . . Hover . | . . . Flight . | . . . Fastest Speed 50 | 50 160 50 Average Speed 136 | 154 160 124 Slowest Speed 160 | 160 160 160 Overloaded Moves . | . . . Propulsion Burnouts . | . . . Robots Hopped . | . . . Cave-ins Triggered . | . . . Exploration Rate (%) 40 | 9 37 75 Regions Visited 2 Branch Regions 1 Pre-discovered Areas 1 | . . 1 Known Exits Taken . | . . . Unknown Exits Taken 2 | 1 1 . Scrap Searched 1 | . . 1 Spaces Dug . | . . . Terrain Destroyed . | . . . Melee . | . . . Projectile . | . . . AOE . | . . . Terrain Rammed . | . . . Walls Destroyed . | . . . Machines Disabled . | . . . Actions | -11 -10 -10 --------- Run | Yrd Mat Min Total 855 | 124 193 538 Wait 3 | . 1 2 Move 696 | 93 148 455 Hop . | . . . Pick Up 13 | 7 2 4 Fast Attach 11 | 7 1 3 Attach 6 | 2 1 3 Detach 4 | 2 . 2 Swap 12 | 1 2 9 Drop 12 | 2 2 8 Fire 96 | 10 35 51 Melee . | . . . Ram . | . . . Kick 1 | . . 1 Crush 1 | . 1 . Escape Stasis . | . . . Rewire . | . . . Trap . | . . . Miscellaneous . | . . . Route ------- -11/Scrapyard -10/Materials (discovered 2 exits: [*Mat] / [*Min]) -10/Mines (discovered 2 exits: [*Mat] / [*Exi]) History --------- Turn | Location | Event 19 | -11/Scrapyard | Discovered new exit (range 15) 196 | -11/Scrapyard | Entered Materials 305 | -10/Materials | Build established: Mutant 436 | -10/Materials | Discovered new exit (range 14) 535 | -10/Materials | Discovered new exit (range 8) 548 | -10/Materials | Entered Mines 585 | -10/Mines | Found a damaged Exp. Sensor Array with a note attached 589 | -10/Mines | Found Prototype Device 589 | -10/Mines | Identified Exp. Sensor Array 869 | -10/Mines | Core integrity fell below 50% 949 | -10/Mines | Escorted by a lone wolf Derelict 1010 | -10/Mines | Discovered new exit (range 16) 1100 | -10/Mines | Deemed a non-threat by the Exiles lab entrance 1101 | -10/Mines | Discovered new exit (range 5) 1236 | -10/Mines | Assembled infested the area 1241 | -10/Mines | Assisted by a Guerilla fighting off Assembled 1275 | -10/Mines | Core integrity fell below 20% 1289 | -10/Mines | Destroyed by D-53 Grenadier with Mini Grenade Launcher Last Messages --------------- 01253_ G-34 Mercenary suffers critical hit (Destroy). 01253_ G-34 Mercenary destroyed. 01253_ G-47 Trooper suffers critical hit (Destroy). 01253_ G-47 Trooper destroyed. 01273_ NG-B9X(g) suffers critical hit (Destroy). 01273_ NG-B9X(g) destroyed. 01276_ Aluminum Leg destroyed. 01279_ as-54545 destroyed. 01280_ as-29626 destroyed. 01282_ U-05 Engineer destroyed. 01283_ as-05750 destroyed. 01284_ Ion Engine destroyed. 01285_ as-06416 destroyed. 01286_ C-30 ARC bursts open, deploying its payload. 01286_ D-53 Grenadier unfolds itself. 01287_ Dropped Sml. Storage Unit. 01287_ 7O-JH7(g): "Mission, incomplete...*fzzt*" 01287_ 7O-JH7(g) destroyed. 01287_ NA-8OJ(z) destroyed. 01288_ HV Slug penetrates Wall. Map ----- +----------------------------------------------------+ | ???????????????????????? #?# #####?# | | ????????????????????????###?######### #?????# | | ????????????????????????????????????# #?????# | | ????????????????????????????????????# #?????# | | ????????????????????????????????????# #?????# | | ????????????????????????????????????#*#?????### | | ????????????????????????????????????# ######??? | | ????????????????????????????????????#== #??? | | ?????????????????????#####??????? ??# ####*#??? | | ?????????????????????# ???? ## ?? #??# #??? | | ?????????????????????# ???? ? #??# #??? | | ?????????????????????# #???? # #??# #### | | ?????????????????????# #??? ## #??# ! | | ?????????????????????# #??# ####?# #??###### | | ?????????????????????#!/#??# #????# #???????? | | ?????????????????????#| #??? #????# #???????? | | ?????????????????????#= ##?# #????# #???????? | | ?????????????????????# ## #????# ????????? | | ?????????????????????# ##???# ????????? | | ????###??????????????# #???# ????? | | ???? ??????????????## #???# ??? | | ???? ""???????????????## #????##???###### | | ???? ""????????????????# #??????????????? | | ???? ""???????????????## #??????????????? | | ???? ?????????????### #??????????????? | | ????# #??????????#### @ ##??????????????? | | ????# #?????????## # ##???????????????? | | ????# #?????????# = #????????????????? | | ????# ############%* d#############????? | | ????#%%% !=*!! d %" #????? | | ????############ %h[ # ########## ###### | | ???????????????# % ### #????????# # | | ???????????????###%= ##?## ##????????###### # | | ?????????????????#|%###???####??????????????# # | | ?????????????????#aa#???????????????????????# # | | ???????????????? aaa#???????????????????????# # | | ???????????????# a #???????????????????????# | | ???????????????# a###???????????????????????### | | ???????????????#aa????????????????????????????? | | ???????????????# ????????????????????????????? | | ???????????????# ????????????????????????????? | | ???????????????# ????????????????????????????? | | ???????????????# ????????????????????????????# | | ???????????????# ???????????????????????????## | | ???????????????# ???????????????????????????# | | ???????????????#?????????????????????????????## | | ??????????????????????????????????????????????# | | ??????????????????????????????????????????????? | | ??????????????????????????????????????????????? | | ??????????????????????????????????????????????? | +----------------------------------------------------+ Best States ------------- Heat Dissipation 35 Energy Generation 10 Energy Capacity 250 Matter Stores 273 Matter Capacity 300 Sight Range 16 Robot Scan Range 20 Terrain Scan Range 16 Terrain Scan Density 10 Evasion (%) 55 Recoil Reduction 2 Item Schematics ----------------- None Robot Schematics ------------------ None Fabricated ------------ Nothing Alien Tech Used ----------------- None Achievements -------------- None Challenges ------------ None Game ------ Seed RingScrapoidPenetrator Manual? 0 Play Time 00:09:49 Cumulative 112.4 hours Start 2024.09.02 @ 23:42:36 End 2024.09.02 @ 23:50:40 Sessions 1 Manual Loads 0 Difficulty Rogue Special Mode None Game No. 130 Rogue 130 Adventurer 0 Explorer 0 Win Type - Total 2 Types 2/0/0/0/0/0/0/0/0 Lore% 50 Gallery% 62 Achievement% 46 Wizard Run 0 Options --------- Layout 0 ASCII 0 Keyboard 1 Movement Numpad Keybinds 0 Fullscreen 2 Font 18/SmallcapsGlow Map View 76x50 Zoom Use 0% Tactical HUD 1 Map Filters NONE Filters NONE Steam 1 RUN: 197bd382-08f2-48ef-ab2d-6bfb92fbc5aa